bitfinex/quotes_ETHUSD_20250518
["timestamp","ask_amount","ask_price","bid_price","bid_amount"]
[1747598156087,4.14524954,2412.4,2412.3,0.34605256]
[1747598156281,4.14524954,2412.4,2412.3,14.13305256]
[1747598156747,4.14479035,2412.7,2412.3,14.77639894]
[1747598156947,4.14399611,2413.2,2412.3,14.77639894]
[1747598157276,4.14441991,2412.9,2412.3,14.77639894]
[1747598157493,4.14468066,2412.8,2412.3,18.92178925]
[1747598157794,4.14451494,2412.9,2412.4,4.14515523]
[1747598158100,4.14318859,2413.6,2412.6,1.59]
[1747598158272,4.14410375,2413.1,2412.6,5.7348211]
[1747598158604,4.14338565,2413.5,2412.6,1.59]
[1747598158755,4.14344848,2413.5,2412.6,1.59]
[1747598158957,3.5,2413.7,2413.3,1.5272]
[1747598159163,3.5,2413.7,2413.6,4.14318859]
[1747598159380,3.5,2413.7,2413.4,36.39462382]
[1747598159547,3.5,2413.7,2413.6,4.14318859]
[1747598159748,3.5,2413.7,2413.4,18.46509608]
[1747598159959,4.14318859,2413.6,2413.3,1.5272]
[1747598160244,7.64306544,2413.7,2413.4,31.684]
[1747598160462,3.5,2413.7,2413.3,1.5272]
[1747598160663,4.1434864,2413.5,2413.4,31.684]
[1747598161114,4.1434864,2413.5,2413.4,32.02989484]
[1747598161403,12.1434864,2413.5,2413.4,0.34589484]
[1747598161892,4.1434864,2413.5,2413.4,0.34589484]
[1747598162290,4.14353194,2413.4,2413.3,13.783]
[1747598162486,4.14353194,2413.4,2413.3,15.1613]
[1747598162665,3.5,2413.7,2413.3,15.1613]
[1747598162866,3.5,2413.7,2413.3,28.6663]
[1747598163063,3.5,2413.7,2413.6,4.14318859]
[1747598163500,3.5,2413.7,2413.4,1.5272]
[1747598163681,3.5,2413.7,2413.5,14.07355]
[1747598164003,0.7186949,2413.7,2413.6,17.66461195]
[1747598164230,4.14146943,2414.7,2413.6,19.15038859]
[1747598164394,4.14081008,2415.0,2413.6,19.15038859]
[1747598164395,4.1420983,2414.3,2413.7,27.256]
[1747598164703,4.14162167,2414.6,2414.0,4.14241977]
[1747598164906,4.14147916,2414.6,2414.1,18.30624198]
[1747598165066,4.1414773,2414.6,2414.2,1.6283]
[1747598165369,4.1407282,2415.1,2414.2,1.97408022]
[1747598165571,0.46593797,2415.8,2414.2,1.97408022]
[1747598165769,0.46593797,2415.8,2414.4,4.14172777]
[1747598165770,4.14085224,2415.0,2414.4,4.14172777]
[1747598166009,4.1407969,2415.0,2414.4,4.14174176]
[1747598166205,4.14068475,2415.1,2414.5,4.14161278]
[1747598166707,4.14017244,2415.4,2415.1,1.6283]
[1747598166903,4.14043633,2415.3,2415.2,17.892]
[1747598167105,4.14022177,2415.4,2415.2,31.337]
[1747598167678,4.13998324,2415.5,2415.2,31.337]
[1747598167873,4.13914548,2416.0,2415.2,17.892]
[1747598168077,17.53037221,2416.5,2415.2,17.892]
[1747598168271,4.14021448,2415.4,2415.3,13.441]
[1747598168704,4.1400938,2415.5,2415.3,13.441]
[1747598169023,4.14010101,2415.4,2415.3,0.34562274]
[1747598169186,4.14010101,2415.4,2415.3,13.78662274]
[1747598169707,5.78681501,2416.4,2415.3,13.78662274]
[1747598169909,4.13960516,2415.7,2415.3,13.78662274]
[1747598170208,4.13981432,2415.6,2415.3,13.78662274]
[1747598170382,4.14010101,2415.4,2415.3,0.34562274]
[1747598170582,4.13890153,2416.1,2415.3,13.78662274]
[1747598170907,4.14010101,2415.4,2415.3,0.34562274]
[1747598171113,4.14010101,2415.4,2415.3,13.78462274]
[1747598171271,4.13883599,2416.2,2415.3,13.78462274]
[1747598171477,4.13976132,2415.6,2415.3,13.78462274]
[1747598171878,4.13873023,2416.2,2415.3,13.78462274]
[1747598172274,4.14010101,2415.4,2415.3,0.34562274]
[1747598172518,4.14010101,2415.4,2415.3,13.78462274]
[1747598173024,4.13964673,2415.7,2415.3,13.78462274]
[1747598173203,4.13912176,2416.0,2415.3,13.78462274]
[1747598173406,19.31674004,2416.4,2415.3,13.78462274]
[1747598173619,4.13901942,2416.1,2415.3,13.78462274]
[1747598173812,4.13975342,2415.7,2415.3,16.36700149]
[1747598173985,4.13980972,2415.6,2415.3,16.36700149]
[1747598174325,4.13855895,2416.3,2415.3,0.34562274]
[1747598174476,4.14010101,2415.4,2415.3,0.34562274]
[1747598174681,12.14010101,2415.4,2415.3,0.34562274]
[1747598175085,4.14010101,2415.4,2415.3,0.34562274]
[1747598175531,4.14010101,2415.4,2415.3,13.78262274]
[1747598176232,1.6483,2415.9,2415.3,13.78262274]
[1747598176535,5.78663663,2416.5,2415.4,4.13997294]
[1747598176699,4.13899858,2416.1,2415.6,4.13972685]
[1747598176899,4.13899858,2416.1,2415.7,18.22656551]
[1747598177331,4.13914532,2416.0,2415.7,18.22656551]
[1747598177527,0.46593797,2416.7,2415.7,20.46320611]
[1747598177829,4.13883966,2416.2,2415.7,20.46320611]
[1747598178142,0.31343116,2416.7,2415.7,20.46320611]
[1747598178340,4.13941551,2415.8,2415.7,18.22656551]
[1747598178545,4.13941551,2415.8,2415.7,31.66356551]
[1747598178911,4.13941551,2415.8,2415.7,18.22656551]
[1747598179152,4.13941551,2415.8,2415.7,31.33056551]
[1747598179746,4.13941551,2415.8,2415.7,18.22656551]
[1747598179902,4.13941551,2415.8,2415.7,31.32856551]
[1747598181108,4.13941551,2415.8,2415.7,18.22656551]
[1747598181602,4.13941551,2415.8,2415.7,31.32856551]
[1747598182949,4.13770274,2416.8,2415.7,31.92876397]
[1747598183154,4.13861321,2416.3,2415.8,6.1180155]
[1747598183366,4.13770274,2416.8,2415.9,0.3455369]
[1747598183520,5.70489593,2416.9,2415.9,13.3085369]
[1747598183720,4.13701803,2417.2,2415.9,0.3455369]
[1747598184036,4.13846895,2416.4,2416.0,13.101]
[1747598184343,4.13736036,2417.0,2416.1,13.4465083]
[1747598184553,1.5673,2417.3,2416.2,0.345494]
[1747598184766,1.5537,2416.4,2413.6,1.6026]
[1747598185054,4.14130119,2414.7,2413.7,13.10734781]
[1747598185221,4.14130119,2414.7,2413.8,1.88944889]
[1747598185417,4.14211709,2414.3,2413.8,1.88944889]
[1747598185616,1.5537,2415.4,2414.0,4.14250207]
[1747598185847,4.14140082,2414.7,2414.1,4.14223403]
[1747598186018,4.13907284,2416.0,2414.2,28.2108234]
[1747598186218,4.14096305,2414.9,2414.4,4.14181577]
[1747598186463,4.14075052,2415.1,2414.3,17.874]
[1747598186675,0.3445251,2415.9,2414.5,0.04140653]
[1747598186676,4.13989283,2415.6,2414.5,0.04140653]
[1747598186859,4.13941551,2415.8,2415.1,1.6026]
[1747598187030,4.14019927,2415.4,2415.2,30.973]
[1747598187217,4.14027242,2415.3,2415.2,17.874]
[1747598187554,4.14027242,2415.3,2415.2,30.973]
[1747598187851,0.3445251,2415.7,2415.2,30.973]
[1747598188253,4.13977895,2415.6,2415.2,30.973]
[1747598189042,4.14002263,2415.5,2415.3,13.099]
[1747598189355,4.13994709,2415.5,2415.3,17.18672253]
[1747598189557,1.5537,2416.3,2415.3,17.18672253]
[1747598189558,17.20384468,2416.2,2415.3,17.18672253]
[1747598189757,4.13977342,2415.6,2415.3,17.18672253]
[1747598189931,4.14006701,2415.5,2415.4,13.099]
[1747598190766,4.14010101,2415.4,2415.3,4.08772253]
[1747598191060,4.13919573,2416.0,2415.3,13.099]
[1747598191362,4.14005917,2415.5,2415.2,17.874]
[1747598191565,4.14008265,2415.5,2415.3,13.099]
[1747598191720,17.20385692,2416.2,2415.3,13.099]
[1747598192035,1.5431,2416.7,2415.7,1.5432]
[1747598192235,4.13823996,2416.5,2415.8,17.08867274]
[1747598192448,4.13814543,2416.6,2416.1,1.5432]
[1747598192756,0.46593797,2416.9,2416.2,30.973]
[1747598192757,4.13770274,2416.8,2416.2,30.973]
[1747598192927,4.13817733,2416.6,2416.2,30.973]
[1747598193128,0.46593797,2416.9,2416.2,30.973]
[1747598193129,4.13793871,2416.7,2416.2,17.874]
[1747598193347,4.13838768,2416.4,2416.3,13.099]
[1747598193559,4.13838768,2416.4,2416.2,17.874]
[1747598193560,4.13855895,2416.3,2416.2,17.874]
[1747598193738,4.13855895,2416.3,2416.2,30.973]
[1747598194557,17.135434,2416.3,2415.2,13.099]
[1747598194731,4.13928094,2415.9,2414.9,17.874]
[1747598194924,4.14061529,2415.1,2415.0,13.098]
[1747598196226,4.14078674,2415.0,2414.9,19.6614]
[1747598196566,4.14078674,2415.0,2414.9,30.972]
[1747598197150,4.14068609,2415.1,2414.9,30.972]
[1747598197525,4.14007956,2415.5,2414.9,30.972]
[1747598197829,4.14039763,2415.3,2414.9,30.972]
[1747598198254,4.14051547,2415.2,2414.9,30.972]
[1747598198456,4.14051547,2415.2,2415.0,4.08772253]
[1747598198662,4.14061529,2415.1,2415.0,4.08772253]
[1747598198965,4.1405391,2415.2,2414.9,17.874]
[1747598199150,4.14061529,2415.1,2415.0,13.099]
[1747598199342,4.14078674,2415.0,2414.9,17.874]
[1747598199544,4.14078674,2415.0,2414.9,30.973]
[1747598200631,4.13981875,2415.6,2414.9,34.0703]
[1747598200975,4.14017034,2415.4,2414.9,34.0703]
[1747598201471,4.14017034,2415.4,2414.9,38.21125018]
[1747598201641,4.14017034,2415.4,2415.0,1.6582]
[1747598201848,4.13982046,2415.6,2415.0,1.6582]
[1747598202042,4.14027183,2415.4,2415.1,3.98694502]
[1747598202258,4.14028515,2415.3,2415.0,1.6582]
[1747598202462,4.14045147,2415.2,2415.0,1.6582]
[1747598202732,4.14061529,2415.1,2415.0,1.6582]
[1747598202929,4.14061529,2415.1,2415.0,14.4062]
[1747598203365,4.14078674,2415.0,2414.9,20.9713]
[1747598203731,4.14051144,2415.2,2414.9,30.622]
[1747598203929,4.14066106,2415.1,2414.9,30.622]
[1747598204129,1.5462,2416.0,2415.0,0.04140315]
[1747598204339,1.5462,2416.0,2414.9,30.622]
[1747598204340,4.13941551,2415.8,2414.9,30.622]
[1747598204570,4.14001926,2415.5,2415.0,4.14075362]
[1747598204757,4.14012126,2415.4,2415.1,3.47627536]
[1747598204933,4.13962836,2415.7,2415.1,3.47627536]
[1747598205132,4.14018118,2415.4,2415.1,3.47627536]
[1747598205333,4.13941551,2415.8,2415.1,3.47627536]
[1747598205570,4.14027673,2415.3,2415.1,3.47627536]
[1747598205774,4.14027673,2415.3,2415.2,0.34762754]
[1747598205972,4.14044385,2415.2,2414.9,17.874]
[1747598206176,4.14044385,2415.2,2415.0,12.748]
[1747598206177,4.14064506,2415.1,2415.0,12.748]
[1747598207673,4.14078674,2415.0,2414.9,17.874]
[1747598208038,4.14078674,2415.0,2414.9,30.621]
[1747598208843,12.14078674,2415.0,2414.9,30.621]
[1747598209062,1.5462,2415.2,2414.7,12.747]
[1747598209246,4.14178315,2414.5,2414.2,17.874]
[1747598209447,1.5462,2415.2,2414.3,12.747]
[1747598209768,4.14095821,2414.9,2414.3,12.747]
[1747598210070,4.14174874,2414.5,2414.3,12.747]
[1747598210230,4.14181577,2414.4,2414.3,12.747]
[1747598210435,4.14178546,2414.5,2414.3,12.747]
[1747598210670,4.14155422,2414.6,2414.4,3.24084]
[1747598210873,12.49,2415.3,2414.4,3.24084]
[1747598210874,4.14103984,2414.9,2414.4,3.24084]
[1747598211055,4.14075335,2415.1,2414.4,7.3826236]
[1747598211255,13.75473744,2415.6,2414.6,1.5267]
[1747598211256,1.6149,2415.6,2414.6,1.5267]
[1747598211460,5.75474166,2415.6,2414.6,1.5267]
[1747598211838,1.6149,2415.6,2414.6,1.5267]
[1747598212039,0.46593797,2415.8,2414.7,0.04140083]
[1747598212247,0.3445251,2415.7,2414.7,1.60120632]
[1747598212451,4.48416394,2415.7,2414.8,12.412]
[1747598212864,4.13978153,2415.6,2414.8,12.412]
[1747598213072,0.3445251,2415.7,2414.5,2.01296236]
[1747598213257,4.13981537,2415.6,2414.9,12.412]
[1747598213971,4.48417676,2415.7,2414.9,12.412]
[1747598214184,4.48417676,2415.7,2414.9,13.80587]
[1747598214646,0.3445251,2415.7,2415.0,20.36739806]
[1747598214846,0.3445251,2415.7,2415.2,5.65073304]
[1747598215053,0.3445251,2415.7,2415.2,1.5104]
[1747598215258,4.13894196,2416.1,2415.2,1.5104]
[1747598215477,4.13894196,2416.1,2415.3,1.93864]
[1747598215846,6.17855654,2416.4,2415.3,1.93864]
[1747598216055,4.13941786,2415.8,2415.4,12.412]
[1747598216476,4.13932728,2415.9,2415.4,12.412]
[1747598216668,4.13942109,2415.8,2415.4,12.412]
[1747598216870,4.13855895,2416.3,2415.4,12.412]
[1747598216871,4.13960287,2415.7,2415.4,12.412]
[1747598217052,4.13855895,2416.3,2415.4,12.412]
[1747598217053,12.266,2416.2,2415.4,12.412]
[1747598217252,12.266,2416.2,2415.4,13.38557859]
[1747598217452,4.13939262,2415.9,2415.4,13.38557859]
[1747598217685,4.13924417,2415.9,2415.4,12.412]
[1747598217890,4.13944585,2415.8,2415.4,12.412]
[1747598218048,4.139313,2415.9,2415.4,12.412]
[1747598218253,4.13961264,2415.7,2415.4,12.412]
[1747598218449,4.13924417,2415.9,2415.5,12.412]
[1747598218645,12.266,2416.2,2415.5,12.412]
[1747598218646,4.13975823,2415.6,2415.5,12.412]
[1747598218880,12.266,2416.2,2415.5,12.412]
[1747598218881,4.13888051,2416.2,2415.5,12.412]
[1747598219083,4.13933934,2415.9,2415.5,13.6532]
[1747598219284,12.205,2416.2,2415.5,13.6532]
[1747598219489,4.13907284,2416.0,2415.5,1.2412]
[1747598219664,8.0,2416.3,2415.6,12.412]
[1747598219862,9.5742,2416.4,2415.6,12.412]
[1747598220180,4.13931204,2415.9,2415.6,12.412]
[1747598220493,4.13890576,2416.1,2415.6,12.412]
[1747598220895,4.1387447,2416.2,2415.6,12.412]
[1747598221104,4.13869714,2416.3,2415.7,1.2412]
[1747598221402,4.13806427,2416.6,2415.7,1.2412]
[1747598221705,4.13885644,2416.2,2415.7,1.2412]
[1747598221861,4.1391953,2416.0,2415.7,1.2412]
[1747598222194,4.13941551,2415.8,2415.7,1.2412]
[1747598222395,4.13941551,2415.8,2415.7,12.411]
[1747598222595,4.1393324,2415.9,2415.7,12.411]
[1747598222892,4.13913961,2416.0,2415.7,12.411]
[1747598223097,4.13924894,2415.9,2415.7,12.411]
[1747598223559,4.13804518,2416.6,2415.7,12.411]
[1747598223761,4.13907195,2416.1,2415.7,13.5985093]
[1747598223959,4.13915501,2416.0,2415.7,13.5985093]
[1747598224396,8.0,2416.7,2415.7,13.5985093]
[1747598224556,4.13804518,2416.6,2415.7,13.5985093]
[1747598224760,4.13920149,2416.0,2415.8,12.062]
[1747598224998,4.13924417,2415.9,2415.8,12.062]
[1747598225493,4.13941551,2415.8,2415.7,1.1875093]
[1747598225695,4.13931864,2415.9,2415.8,12.062]
[1747598226793,4.13834453,2416.5,2415.8,12.062]
[1747598226979,4.13924417,2415.9,2415.2,1.5549]
[1747598227181,4.13967212,2415.7,2415.2,9.5549]
[1747598227389,4.14010101,2415.4,2415.3,12.062]
[1747598227559,4.14010101,2415.4,2415.3,4.08772253]
[1747598227759,4.13987261,2415.6,2415.3,12.062]
[1747598227979,4.14010101,2415.4,2415.3,12.062]
[1747598228689,5.64710101,2415.4,2415.3,12.062]
[1747598229075,4.14010101,2415.4,2415.3,12.062]
[1747598229271,4.13916192,2416.0,2415.3,15.0554]
[1747598229580,4.13984934,2415.6,2415.3,15.0554]
[1747598229774,4.14010101,2415.4,2415.3,2.9934]
[1747598230086,4.14027242,2415.3,2415.2,17.872]
[1747598230285,4.14027242,2415.3,2415.2,29.934]
[1747598230686,4.13924417,2415.9,2415.2,29.934]
[1747598230984,4.13986726,2415.6,2415.2,29.934]
[1747598231400,4.14027242,2415.3,2415.2,29.934]
[1747598232282,4.14027242,2415.3,2415.2,17.872]
[1747598232482,4.14027242,2415.3,2415.2,29.934]
[1747598233022,15.96227242,2415.3,2415.2,29.884]
[1747598233219,15.96227242,2415.3,2415.2,17.822]
[1747598233389,4.14044385,2415.2,2415.1,12.064]
[1747598233590,4.1414727,2414.6,2414.5,17.874]
[1747598233785,11.822,2415.3,2414.5,17.874]
[1747598233786,4.14064368,2415.1,2414.9,12.064]
[1747598234001,4.14064368,2415.1,2414.5,17.874]
[1747598234002,4.14078674,2415.0,2414.5,17.874]
[1747598234185,4.14027242,2415.3,2414.6,13.8514]
[1747598234402,1.5194,2415.4,2414.6,13.8514]
[1747598234601,4.14122095,2414.8,2414.6,13.8514]
[1747598234785,4.14130119,2414.7,2414.6,1.7874]
[1747598234986,4.1414727,2414.6,2414.5,17.874]
[1747598235192,4.1414727,2414.6,2414.5,29.938]
[1747598235428,4.1414727,2414.6,2414.5,17.874]
[1747598235622,4.1414727,2414.6,2414.5,29.938]
[1747598236299,4.1414727,2414.6,2414.5,17.874]
[1747598236500,5.6476727,2414.6,2414.5,29.939]
[1747598237497,4.1414727,2414.6,2414.5,29.939]
[1747598238243,4.1414727,2414.6,2414.5,17.874]
[1747598238528,4.1414727,2414.6,2414.5,29.61]
[1747598239830,4.1414727,2414.6,2414.5,29.611]
[1747598241529,4.14130119,2414.7,2413.4,17.878]
[1747598241530,4.14318859,2413.6,2413.4,17.878]
[1747598241748,4.14318859,2413.6,2413.5,11.737]
[1747598242021,1.524,2414.3,2413.5,11.737]
[1747598242224,4.14292825,2413.8,2413.5,11.737]
[1747598242547,4.14078674,2415.0,2413.7,4.14291334]
[1747598242692,0.46593797,2415.1,2413.8,0.60602149]
[1747598243049,4.1414727,2414.6,2413.9,11.739]
[1747598243352,4.14250207,2414.0,2413.9,11.739]
[1747598243942,4.14267368,2413.9,2413.8,17.881]
[1747598244117,4.14267368,2413.9,2413.8,29.62]
[1747598246111,4.14258137,2414.0,2413.8,29.62]
[1747598246339,4.14212353,2414.3,2413.9,2.962]
[1747598246542,4.14120852,2414.8,2414.2,4.14200395]
[1747598246707,4.76845958,2415.3,2414.0,0.04141816]
[1747598246708,0.62807877,2415.3,2414.3,1.63950968]
[1747598246916,0.62807877,2415.3,2414.4,11.74]
[1747598247111,0.62807877,2415.3,2414.9,5.7389397]
[1747598247432,0.62807877,2415.3,2415.0,30.19689397]
[1747598247640,4.60655326,2415.1,2415.0,29.623]
[1747598247813,4.14061529,2415.1,2415.0,29.623]
[1747598248319,4.14061529,2415.1,2415.0,17.883]
[1747598248523,15.85461529,2415.1,2415.0,17.883]
[1747598248842,11.714,2415.1,2414.3,17.88]
[1747598249043,4.1414138,2414.7,2414.4,11.738]
[1747598249255,11.712,2415.3,2414.4,11.738]
[1747598249256,4.1412717,2414.8,2414.4,11.738]
[1747598249546,4.14130967,2414.7,2414.4,11.738]
[1747598249738,4.14149329,2414.6,2414.4,11.738]
[1747598249946,4.14136807,2414.7,2414.4,11.738]
[1747598250120,4.14181577,2414.4,2414.3,17.88]
[1747598250326,4.14181577,2414.4,2414.3,29.618]
[1747598250733,11.712,2415.2,2414.3,29.618]
[1747598251053,4.14150035,2414.6,2414.3,29.618]
[1747598251255,4.14082352,2415.0,2414.3,32.5798]
[1747598251423,4.14163258,2414.6,2414.3,32.5798]
[1747598251626,4.14138771,2414.7,2414.3,32.5798]
[1747598251854,4.14147322,2414.6,2414.3,32.5798]
[1747598252060,4.14096594,2414.9,2414.3,32.5798]
[1747598252228,1.5713,2415.4,2414.4,3.6721904]
[1747598252563,4.14113489,2414.8,2414.4,3.6721904]
[1747598253455,12.13990093,2415.6,2414.5,1.5981]
[1747598253658,5.7107232,2415.8,2414.5,1.5981]
[1747598253952,4.14087102,2415.0,2414.5,5.73974124]
[1747598254158,4.14072712,2415.1,2414.6,0.94119316]
[1747598254459,4.14104959,2414.9,2414.6,0.94119316]
[1747598255020,4.14124417,2414.8,2414.6,0.94119316]
[1747598255253,4.1411297,2414.8,2414.7,11.738]
[1747598255457,4.14010101,2415.4,2414.7,11.738]
[1747598255458,4.14014139,2415.4,2414.7,11.738]
[1747598255631,4.14098058,2414.9,2414.7,11.738]
[1747598255837,4.14086846,2415.0,2414.7,11.738]
[1747598256629,4.1388915,2416.2,2414.7,11.738]
[1747598256854,4.1388915,2416.2,2414.5,1.5981]
[1747598256855,4.13958686,2415.7,2414.8,1.1738]
[1747598257050,4.14078674,2415.0,2414.9,11.738]
[1747598257627,4.14044385,2415.2,2414.9,11.737]
[1747598257971,4.14061529,2415.1,2415.0,11.737]
[1747598258386,4.1414727,2414.6,2414.5,1.5981]
[1747598258539,4.14160336,2414.6,2414.5,11.737]
[1747598259676,3.51408667,2414.6,2414.5,14.6987]
[1747598259838,1.5713,2416.1,2414.5,4.5598]
[1747598260043,4.14063116,2415.1,2414.6,11.737]
[1747598260269,4.14086401,2415.0,2414.6,11.737]
[1747598260465,4.14086401,2415.0,2413.8,17.879]
[1747598260466,4.1411297,2414.8,2413.8,17.879]
[1747598260663,4.1414727,2414.6,2413.9,13.58929614]
[1747598260864,4.14227778,2414.2,2413.9,13.58929614]
[1747598261141,19.707,2414.9,2413.9,13.58929614]
[1747598261142,4.14210925,2414.3,2413.9,13.58929614]
[1747598261379,4.14136675,2414.7,2413.9,13.58929614]
[1747598261380,11.706,2414.7,2413.9,13.58929614]
[1747598261576,4.14244327,2414.1,2413.9,13.58929614]
[1747598262769,4.14218698,2414.2,2413.9,13.58929614]
[1747598262937,4.14209853,2414.3,2414.0,3.14682961]
[1747598263140,4.1421639,2414.2,2414.0,3.14682961]
[1747598263545,4.14175297,2414.5,2414.0,7.28924581]
[1747598263856,4.14186219,2414.4,2414.0,3.14682961]
[1747598264035,4.1419909,2414.3,2414.0,3.14682961]
[1747598264240,4.1419909,2414.3,2414.1,0.45451438]
[1747598264553,4.1419909,2414.3,2414.0,3.14682961]
[1747598264554,4.14233047,2414.1,2414.0,3.14682961]
[1747598264871,4.14219135,2414.2,2414.0,3.14682961]
[1747598265075,4.14169276,2414.5,2414.0,3.14682961]
[1747598265473,11.707,2414.8,2413.9,13.58929614]
[1747598265679,4.14226778,2414.2,2413.9,13.58929614]
[1747598265879,4.14176667,2414.5,2413.9,13.58929614]
[1747598266046,4.14176667,2414.5,2414.0,4.14249004]
[1747598266246,4.14176667,2414.5,2414.1,1.77317862]
[1747598266445,11.706,2414.9,2413.9,13.58929614]
[1747598266655,4.14214143,2414.3,2413.9,11.737]
[1747598266856,4.1411297,2414.8,2413.9,11.737]
[1747598267042,4.14245924,2414.1,2413.9,11.737]
[1747598267255,11.705,2414.9,2413.8,17.879]
[1747598267256,4.14250207,2414.0,2413.8,17.879]
[1747598267455,4.14267368,2413.9,2413.8,17.879]
[1747598267659,4.14258078,2414.0,2413.8,29.585]
[1747598267862,4.14267368,2413.9,2413.8,29.585]
[1747598268078,1.5047,2414.3,2413.8,29.585]
[1747598268251,4.14267368,2413.9,2413.8,29.585]
[1747598272085,4.14257529,2414.0,2413.8,29.585]
[1747598272255,4.1425364,2414.0,2413.8,29.585]
[1747598272455,4.14267368,2413.9,2413.8,29.585]
[1747598272865,4.14258395,2414.0,2413.8,29.585]
[1747598273270,4.14267368,2413.9,2413.8,29.585]
[1747598273694,1.5047,2414.3,2413.8,29.585]
[1747598273695,4.14222149,2414.2,2413.8,29.585]
[1747598274004,4.14267368,2413.9,2413.8,17.879]
[1747598274157,4.14267368,2413.9,2413.8,29.586]
[1747598275710,17.45277368,2413.9,2413.8,17.879]
[1747598275857,4.14318859,2413.6,2413.5,11.708]
[1747598276053,4.14347678,2413.5,2413.4,11.708]
[1747598276354,4.14387535,2413.2,2413.1,29.592]
[1747598276558,5.75231881,2413.0,2412.9,0.6439614]
[1747598276756,13.75231881,2413.0,2412.9,0.6439614]
[1747598276983,25.45331881,2413.0,2412.9,0.6439614]
[1747598277899,25.45231881,2413.0,2412.9,0.6439614]
[1747598278104,25.45231881,2413.0,2412.4,11.708]
[1747598278105,4.14507772,2412.5,2412.4,11.708]
[1747598279558,11.701,2412.9,2412.4,12.8788]
[1747598279795,4.14506999,2412.6,2412.4,12.8788]
[1747598279958,11.701,2412.9,2412.4,12.8788]
[1747598280164,4.14507772,2412.5,2412.4,12.8788]
[1747598280392,11.701,2412.9,2412.4,12.8788]
[1747598280608,4.14450066,2412.9,2412.5,1.28788]
[1747598280809,4.14456886,2412.8,2412.5,1.28788]
[1747598281285,4.1440075,2413.2,2412.6,0.0414436]
[1747598281524,4.1440031,2413.2,2412.6,4.18624641]
[1747598281733,4.1444061,2412.9,2412.7,0.96191874]
[1747598281907,4.14483368,2412.7,2412.5,1.28788]
[1747598282113,4.14483368,2412.7,2412.4,12.8788]
[1747598282114,4.14490591,2412.6,2412.4,12.8788]
[1747598282408,4.1449646,2412.6,2412.5,11.712]
[1747598282928,1.5903,2412.6,2412.5,11.712]
[1747598283117,5.73520591,2412.6,2412.5,11.712]
[1747598283521,13.73520591,2412.6,2412.5,11.712]
[1747598284127,25.43320591,2412.6,2412.5,11.712]
[1747598284287,25.43220591,2412.6,2412.5,11.712]
[1747598284681,17.43220591,2412.6,2412.5,11.712]
[1747598285913,4.1457651,2412.1,2412.0,29.598]
[1747598286303,13.7003651,2412.1,2412.0,29.598]
[1747598286509,4.14679659,2411.5,2411.4,11.714]
[1747598286684,4.14748455,2411.1,2411.0,17.893]
[1747598286883,4.14748455,2411.1,2411.0,29.607]
[1747598287387,4.14696503,2411.5,2411.0,32.5677]
[1747598287585,1.5546,2412.1,2411.1,0.04146884]
[1747598287789,1.5546,2412.1,2411.0,32.5677]
[1747598288011,4.14593698,2412.0,2411.3,4.14707057]
[1747598288221,4.14589825,2412.1,2411.4,5.74305963]
[1747598288411,11.697,2412.3,2411.5,0.57430596]
[1747598288613,4.14604947,2412.0,2411.6,11.716]
[1747598288813,1.5546,2412.5,2411.6,11.716]
[1747598289010,6.01395839,2412.5,2411.6,11.716]
[1747598289229,4.14543657,2412.3,2411.4,1.5961]
[1747598289430,1.86872311,2412.5,2411.4,1.5961]
[1747598289431,4.14607056,2412.0,2411.5,11.716]
[1747598289619,4.1462743,2411.9,2411.6,1.74589855]
[1747598290022,4.14628078,2411.8,2411.7,11.716]
[1747598291010,4.14667833,2411.6,2411.0,22.4498]
[1747598291214,4.14677444,2411.6,2411.1,15.86439736]
[1747598291534,4.14526183,2412.4,2411.1,15.86439932]
[1747598291535,4.14636664,2411.8,2411.1,15.86439932]
[1747598291720,4.14658616,2411.7,2411.2,3.53534993]
[1747598291896,4.14641663,2411.8,2411.2,7.68263778]
[1747598292099,4.14616699,2411.9,2411.2,7.68263778]
[1747598292316,4.14589259,2412.1,2411.2,3.53534993]
[1747598292512,13.2476,2412.6,2411.3,1.63755696]
[1747598292856,4.1459659,2412.0,2411.5,4.1466564]
[1747598293021,4.1462215,2411.9,2411.4,1.09229069]
[1747598293537,4.1462215,2411.9,2411.5,11.717]
[1747598293538,4.14662464,2411.6,2411.5,11.717]
[1747598294303,4.14603144,2412.0,2411.5,15.86378563]
[1747598294635,4.14609006,2412.0,2411.6,1.5961]
[1747598294805,4.14609006,2412.0,2411.3,4.14700621]
[1747598295142,4.14639273,2411.8,2411.4,11.717]
[1747598295307,0.3445251,2412.5,2411.4,11.717]
[1747598295308,4.14679659,2411.5,2411.4,11.717]
[1747598295509,4.14542138,2412.3,2411.4,11.717]
[1747598295711,4.14679659,2411.5,2411.4,11.717]
[1747598296121,4.14628078,2411.8,2411.4,11.717]
[1747598296325,4.14679659,2411.5,2411.4,11.717]
[1747598296741,4.14674826,2411.6,2411.4,11.689]
[1747598297348,4.14679659,2411.5,2411.4,11.689]
[1747598297922,4.14595144,2412.0,2411.0,17.893]
[1747598297923,4.14724278,2411.3,2411.0,17.893]
[1747598298241,4.14715602,2411.3,2411.1,11.689]
[1747598298429,9.5546,2412.1,2411.1,11.689]
[1747598298632,4.14610887,2411.9,2411.1,11.689]
[1747598298947,4.14651226,2411.7,2411.2,15.83630454]
[1747598299248,13.5457954,2412.1,2411.3,4.14714054]
[1747598299453,4.14650416,2411.7,2411.2,11.689]
[1747598299653,17.69157056,2412.1,2411.2,11.689]
[1747598299654,4.14696881,2411.4,2411.2,11.689]
[1747598299853,4.14710161,2411.4,2411.2,11.689]
[1747598300022,4.14748455,2411.1,2411.0,17.893]
[1747598300225,4.14610887,2411.9,2411.0,31.65088375]
[1747598300431,4.14748455,2411.1,2411.0,17.893]
[1747598300746,4.14748455,2411.1,2411.0,29.582]
[1747598301546,4.14705639,2411.4,2411.0,29.582]
[1747598301757,1.5112,2411.7,2411.0,17.893]
[1747598301937,4.14731254,2411.2,2411.1,11.689]
[1747598302143,4.14731254,2411.2,2410.5,5.75]